bitfinex-derivatives/quotes_SOLF0:USTF0_20250624
["timestamp","ask_amount","ask_price","bid_price","bid_amount"]
[1750745417157,37.04,145.21,145.16,3.41229714]
[1750745417551,6.8827,145.2,145.16,6.8841]
[1750745417750,37.04,145.21,145.15,3.41229714]
[1750745418558,6.8828,145.2,145.16,6.8842]
[1750745418861,6.8828,145.2,145.17,6.884]
[1750745420449,6.8828,145.2,145.16,6.8844]
[1750745420654,6.8832,145.19,145.12,8.43531624]
[1750745420863,6.8832,145.19,145.15,6.8846]
[1750745421859,6.8827,145.2,145.14,3.41229714]
[1750745422255,6.8827,145.2,145.16,6.8841]
[1750745423162,37.04,145.21,145.12,8.43531624]
[1750745423163,43.9223,145.21,145.12,8.43531624]
[1750745423368,37.04,145.21,145.16,3.41229714]
[1750745423857,37.04,145.21,145.18,3.41229714]
[1750745424051,6.8813,145.23,145.18,3.41229714]
[1750745424257,6.8813,145.23,145.19,6.8828]
[1750745424459,2.4154,145.26,145.2,3.41229714]
[1750745424765,37.02,145.27,145.25,6.8799]
[1750745424961,37.02,145.27,145.24,3.41229714]
[1750745425158,37.02,145.3,145.24,3.41229714]
[1750745425560,37.02,145.3,145.26,3.41229714]
[1750745426053,43.8979,145.3,145.26,3.41229714]
[1750745426453,43.8979,145.3,145.27,1.5]
[1750745427064,6.8786,145.29,145.27,1.5]
[1750745427268,37.02,145.3,145.27,1.5]
[1750745428073,6.8788,145.28,145.27,1.5]
[1750745429167,6.8801,145.26,145.22,3.41229714]
[1750745429458,43.8801,145.26,145.22,6.8815]
[1750745429967,6.8803,145.25,145.21,6.882]
[1750745430265,3.41229714,145.25,145.17,2.3013]
[1750745430470,3.41229714,145.23,145.17,2.3013]
[1750745430661,37.0,145.22,145.19,6.8829]
[1750745431169,37.0,145.22,145.17,2.3013]
[1750745431369,43.882,145.22,145.18,6.8834]
[1750745431864,37.0,145.22,145.17,2.3013]
[1750745432170,37.0,145.22,145.19,6.8828]
[1750745432369,37.0,145.22,145.17,5.71359714]
[1750745432571,37.0,145.25,145.19,3.41229714]
[1750745433262,43.8806,145.25,145.21,6.8818]
[1750745438479,37.0,145.25,145.22,6.8817]
[1750745439458,43.8804,145.25,145.22,6.8817]
[1750745439662,43.8804,145.25,145.21,6.882]
[1750745441371,37.0,145.25,145.22,6.8816]
[1750745441568,8.00449714,145.29,145.21,3.41229714]
[1750745441766,36.88,145.28,145.21,3.41229714]
[1750745442072,36.88,145.28,145.23,6.8812]
[1750745443075,6.8796,145.27,145.23,6.8812]
[1750745443372,36.88,145.28,145.22,6.8815]
[1750745443773,6.8798,145.26,145.23,6.8812]
[1750745444671,6.8795,145.27,145.23,6.8812]
[1750745445575,36.88,145.28,145.21,3.41229714]
[1750745445877,36.88,145.28,145.25,3.41229714]
[1750745446074,36.88,145.31,145.25,3.41229714]
[1750745446672,6.8784,145.29,145.25,3.41229714]
[1750745447577,6.8784,145.29,145.26,6.8798]
[1750745447779,6.878,145.3,145.26,6.8798]
[1750745447978,6.878,145.3,145.25,3.41229714]
[1750745448783,6.878,145.3,145.26,6.8797]
[1750745450087,36.88,145.31,145.22,36.88]
[1750745450382,36.88,145.31,145.23,3.41229714]
[1750745450781,6.8786,145.29,145.25,6.8801]
[1750745453481,6.8786,145.29,145.26,6.8797]
[1750745453682,6.8781,145.3,145.26,6.8797]
[1750745453883,36.88,145.31,145.25,3.41229714]
[1750745454181,43.7576,145.31,145.27,6.879]
[1750745455787,6.8779,145.3,145.26,6.8796]
[1750745456491,6.8779,145.3,145.27,6.8792]
[1750745456683,36.88,145.31,145.25,3.41229714]
[1750745457187,43.7575,145.31,145.25,3.41229714]
[1750745457982,43.7575,145.31,145.27,6.8789]
[1750745458182,43.7575,145.31,145.25,3.41229714]
[1750745458585,43.7575,145.31,145.27,6.879]
[1750745459896,43.7575,145.31,145.28,6.8788]
[1750745460495,6.8784,145.29,145.26,6.8796]
[1750745460693,36.88,145.31,145.24,9.67637128]
[1750745460893,36.88,145.31,145.26,3.41229714]
[1750745461190,36.88,145.31,145.28,6.8785]
[1750745462586,43.7577,145.31,145.28,6.8785]
[1750745462996,40.28869822,145.31,145.24,6.26407414]
[1750745463194,6.8791,145.28,145.22,6.26407414]
[1750745463388,36.86,145.27,145.22,6.26407414]
[1750745464094,36.86,145.27,145.21,6.26407414]
[1750745464292,2.3824,145.26,145.21,6.26407414]
[1750745464484,2.3824,145.26,145.2,6.26407414]
[1750745464793,6.881,145.24,145.2,13.14657414]
[1750745465097,36.86,145.23,145.2,13.14657414]
[1750745465294,43.7412,145.23,145.19,13.14697414]
[1750745465493,43.7412,145.23,145.2,6.26407414]
[1750745465694,6.8817,145.22,145.2,6.26407414]
[1750745465992,6.8817,145.22,145.18,8.43531624]
[1750745465993,3.41159017,145.21,145.16,6.26407414]
[1750745466197,6.883,145.2,145.16,6.26407414]
[1750745466398,36.74,145.19,145.16,13.14847414]
[1750745466696,36.74,145.19,145.15,6.26407414]
[1750745468595,36.74,145.19,145.12,9.67566431]
[1750745468897,36.74,145.19,145.14,6.26407414]
[1750745469304,40.15159017,145.19,145.12,6.26407414]
[1750745469511,3.41159017,145.17,145.12,6.26407414]
[1750745470004,3.41159017,145.17,145.11,6.26407414]
[1750745470909,6.8848,145.16,145.11,6.26407414]
[1750745471215,36.76,145.15,145.1,9.67566431]
[1750745471402,36.76,145.15,145.12,6.8863]
[1750745471911,43.645,145.15,145.11,6.8868]
[1750745472115,36.76,145.15,145.1,6.26407414]
[1750745472304,40.17159017,145.15,145.08,6.26407414]
[1750745472501,6.8865,145.12,145.07,6.26407414]
[1750745473221,6.8865,145.12,145.06,9.67566431]
[1750745473520,2.399,145.14,145.08,3.41159017]
[1750745474413,36.76,145.15,145.1,3.41159017]
[1750745474816,36.76,145.15,145.13,6.8856]
[1750745475018,41.2957,145.18,145.1,9.67566431]
[1750745475413,6.8841,145.17,145.1,3.41159017]
[1750745475713,36.76,145.18,145.12,3.41159017]
[1750745476212,43.6439,145.18,145.12,3.41159017]
[1750745476408,36.76,145.18,145.12,3.41159017]
[1750745476610,3.41159017,145.21,145.12,3.41159017]
[1750745476813,36.76,145.2,145.12,3.41159017]
[1750745477522,3.41159017,145.19,145.11,9.67566431]
[1750745477912,36.76,145.2,145.13,3.41159017]
[1750745478313,36.76,145.2,145.12,8.64177414]
[1750745478619,3.41159017,145.19,145.12,2.3777]
[1750745479521,6.8837,145.18,145.14,6.8851]
[1750745480525,6.8841,145.17,145.13,6.8858]
[1750745480822,3.41159017,145.19,145.12,2.3777]
[1750745481124,6.8837,145.18,145.14,6.8851]
[1750745481620,6.8837,145.18,145.15,6.885]
[1750745481825,6.8832,145.19,145.15,6.885]
[1750745482014,36.76,145.2,145.12,12.05560521]
[1750745482618,43.643,145.2,145.12,12.05560521]
[1750745482820,43.643,145.2,145.15,6.8845]
[1750745483323,36.76,145.2,145.12,5.79153107]
[1750745484727,6.8837,145.18,145.12,5.79153107]
[1750745484919,36.76,145.2,145.12,5.79153107]
[1750745485126,3.41383107,145.19,145.11,36.76]
[1750745485318,3.41383107,145.19,145.1,3.41383107]
[1750745485519,3.41383107,145.19,145.1,40.17383107]
[1750745485914,6.8841,145.17,145.1,46.43790521]
[1750745486324,6.8848,145.16,145.12,6.8861]
[1750745487320,6.8848,145.16,145.13,6.8858]
[1750745488123,6.8842,145.17,145.13,6.8858]
[1750745488927,3.41383107,145.17,145.09,9.67790521]
[1750745489123,36.76,145.16,145.09,40.17383107]
[1750745489323,38.9587,145.16,145.09,40.17383107]
[1750745489828,38.9587,145.16,145.09,3.41383107]
[1750745490130,3.41383107,145.15,145.07,637.33073107]
[1750745490321,3.41383107,145.15,145.07,5.79073107]
[1750745490828,3.41383107,145.15,145.09,6.8874]
[1750745491131,3.41383107,145.13,145.07,2.3769]
[1750745491429,6.8867,145.12,145.08,6.888]
[1750745493037,10.29983107,145.13,145.07,2.3769]
[1750745493220,3.41383107,145.13,145.07,2.3769]
[1750745493530,6.8864,145.12,145.08,6.8881]
[1750745493734,3.41383107,145.13,145.08,6.8881]
[1750745494134,6.8865,145.12,145.09,6.8878]
[1750745495221,10.29983107,145.13,145.09,6.8878]
[1750745496135,6.886,145.13,145.09,6.8878]
[1750745498736,6.8856,145.14,145.1,6.8873]
[1750745500031,6.8856,145.14,145.11,6.8868]
[1750745502230,38.9587,145.16,145.12,6.8863]
[1750745502426,38.9587,145.16,145.1,3.4161212]
[1750745502722,2.2422,145.19,145.14,6.8852]
[1750745502723,40.0761212,145.19,145.14,6.8852]
[1750745503432,6.8839,145.18,145.14,6.8852]
[1750745503628,6.8839,145.18,145.13,6.8857]
[1750745504136,6.8842,145.17,145.13,6.8857]
[1750745504735,6.8837,145.18,145.12,9.71056047]
[1750745505039,36.66,145.19,145.12,9.71056047]
[1750745505736,6.8841,145.17,145.14,6.8852]
[1750745506334,6.8837,145.18,145.14,6.8852]
[1750745507532,6.8841,145.17,145.13,13.18013927]
[1750745508129,6.8841,145.17,145.14,13.17983927]
[1750745508443,40.0761212,145.19,145.14,6.29443927]
[1750745509141,6.8841,145.17,145.14,6.29443927]
[1750745510549,6.8841,145.17,145.14,13.17983927]
[1750745512341,6.8841,145.17,145.14,6.29443927]
[1750745514941,6.8841,145.17,145.14,13.17973927]
[1750745515136,6.8837,145.18,145.14,13.17973927]
[1750745515741,6.8837,145.18,145.15,6.29443927]
[1750745516045,6.8837,145.18,145.14,13.17973927]
[1750745516952,6.8841,145.17,145.14,6.29443927]
[1750745518750,6.8841,145.17,145.14,13.17983927]
[1750745518952,6.8841,145.17,145.14,6.29443927]
[1750745519153,40.0761212,145.19,145.14,6.29443927]
[1750745519154,6.8846,145.16,145.14,6.29443927]
[1750745522852,6.885,145.15,145.13,6.29443927]
[1750745523152,3.4161212,145.17,145.12,7.66443927]
[1750745523646,6.8853,145.15,145.12,7.66443927]
[1750745525250,6.8855,145.14,145.12,7.66443927]
[1750745525649,3.41534622,145.17,145.12,7.66443927]
[1750745525860,6.8859,145.13,145.12,1.37]
[1750745526147,3.41534622,145.15,145.12,1.37]
[1750745526340,6.8857,145.14,145.12,1.37]
[1750745528051,3.41534622,145.15,145.12,1.37]
[1750745528256,36.66,145.16,145.12,7.66443927]
[1750745528554,36.66,145.16,145.13,6.29443927]
[1750745528753,36.66,145.16,145.13,13.18003927]
[1750745530257,36.66,145.16,145.12,7.66443927]
[1750745530454,36.66,145.16,145.13,6.29443927]
[1750745530759,6.8851,145.15,145.13,6.29443927]
[1750745530953,6.8851,145.15,145.12,7.66443927]
[1750745531951,3.41534622,145.15,145.12,1.37]
[1750745532354,6.8869,145.11,145.1,6.29443927]
[1750745532552,39.95534622,145.11,145.07,6.29443927]
[1750745532852,6.8874,145.1,145.06,13.18353927]
[1750745533061,6.8874,145.1,145.08,6.29443927]
[1750745533249,39.95534622,145.11,145.08,6.29443927]
[1750745533250,36.54,145.11,145.08,6.29443927]
[1750745533552,36.54,145.14,145.09,6.29443927]
[1750745533856,36.54,145.14,145.08,3.41534622]
[1750745533857,36.54,145.14,145.1,6.29443927]
[1750745534058,36.54,145.14,145.11,6.8865]
[1750745535055,10.29994622,145.16,145.12,6.8862]
[1750745535248,3.41534622,145.16,145.11,6.29443927]
[1750745535559,6.8853,145.15,145.11,6.8867]
[1750745535858,3.41534622,145.16,145.1,6.29443927]
[1750745536159,6.8857,145.14,145.1,13.18143927]
[1750745536856,3.41534622,145.16,145.1,6.29443927]
[1750745537454,6.8855,145.14,145.11,6.29443927]
[1750745538051,6.8851,145.15,145.11,13.18133927]
[1750745539161,641.71984622,145.17,145.12,6.8863]
[1750745539361,634.83534622,145.17,145.11,6.29443927]
[1750745540364,634.83534622,145.17,145.12,6.29443927]
[1750745540660,641.71964622,145.17,145.13,6.8855]
[1750745540958,634.83534622,145.17,145.12,6.29443927]
[1750745541160,634.83534622,145.17,145.1,11.85066246]
[1750745541161,634.83534622,145.17,145.13,6.29443927]
[1750745541860,634.83534622,145.17,145.11,6.29443927]
[1750745542065,634.83534622,145.17,145.12,6.29443927]
[1750745542256,6.8851,145.15,145.12,6.29443927]
[1750745542459,6.8851,145.15,145.11,13.59103927]
[1750745542661,3.41534622,145.15,145.11,0.41]
[1750745543756,6.8859,145.14,145.11,0.41]
[1750745543950,634.83534622,145.17,145.11,0.41]
[1750745544147,634.83534622,145.17,145.11,6.70443927]
[1750745544965,6.8853,145.15,145.11,13.59093927]
[1750745545153,634.83534622,145.17,145.11,13.59093927]
[1750745545653,6.8855,145.14,145.11,13.59093927]
[1750745546257,6.8851,145.15,145.12,6.8863]
[1750745546563,634.83534622,145.17,145.12,6.8863]
[1750745546761,634.83534622,145.17,145.12,6.29443927]
[1750745546962,634.83534622,145.17,145.13,6.29443927]
[1750745547164,641.71974622,145.17,145.13,13.18003927]
[1750745548456,6.8847,145.16,145.13,13.18003927]
[1750745548656,6.8847,145.16,145.13,6.29443927]
[1750745548856,6.8847,145.16,145.12,6.29443927]
[1750745549051,6.8847,145.16,145.13,6.29443927]
[1750745549662,6.8847,145.16,145.13,13.18023927]
[1750745551864,43.4242,145.17,145.14,6.8853]
[1750745552767,36.54,145.17,145.14,6.8853]
[1750745553368,43.4241,145.17,145.14,6.8853]
[1750745555266,43.4241,145.17,145.13,13.23039591]
[1750745556969,43.4241,145.17,145.14,6.8854]
[1750745561376,43.4241,145.17,145.14,13.23009591]
[1750745562177,43.4241,145.17,145.14,6.8854]
[1750745562372,43.4241,145.17,145.14,13.23009591]
[1750745563080,36.54,145.17,145.14,13.23009591]
[1750745563981,43.4241,145.17,145.14,13.23009591]
[1750745564476,6.8845,145.16,145.14,6.34469591]
[1750745564683,6.8845,145.16,145.13,6.34469591]
[1750745565379,43.4242,145.17,145.13,6.34469591]
[1750745565578,43.4242,145.17,145.12,8.43531624]
[1750745565579,43.4242,145.17,145.14,6.34469591]
[1750745565779,36.54,145.17,145.14,6.34469591]
[1750745566081,36.54,145.17,145.14,13.22989591]
[1750745567781,43.4241,145.17,145.14,13.22989591]
[1750745568880,43.4241,145.17,145.14,6.8852]
[1750745569083,43.4241,145.17,145.13,13.23039591]
[1750745569285,43.4241,145.17,145.13,6.34469591]
[1750745569476,36.54,145.17,145.13,6.34469591]
[1750745569677,36.54,145.17,145.14,6.34469591]
[1750745570784,43.4243,145.17,145.14,13.22999591]
[1750745572387,43.4243,145.17,145.14,6.34469591]
[1750745572584,43.4243,145.17,145.13,6.8857]
[1750745572585,6.8845,145.16,145.13,13.23039591]
[1750745572977,6.8853,145.15,145.13,6.34469591]
[1750745573180,6.8853,145.15,145.12,6.34469591]
[1750745573488,6.8853,145.15,145.13,6.34469591]
[1750745574186,6.8853,145.15,145.12,13.23109591]
[1750745574382,6.8853,145.15,145.13,6.34469591]
[1750745575086,39.95464095,145.17,145.13,6.34469591]
[1750745575087,46.83894095,145.17,145.13,13.23029591]
[1750745575380,39.95464095,145.17,145.13,6.34469591]
[1750745575588,6.8857,145.14,145.12,6.34469591]
[1750745575979,6.8857,145.14,145.11,6.34469591]
[1750745577180,6.8851,145.15,145.11,13.23149591]
[1750745577390,6.8851,145.15,145.12,6.34469591]
[1750745578591,6.8851,145.15,145.13,6.34469591]
[1750745581087,6.8848,145.16,145.13,6.34469591]
[1750745581293,36.54,145.17,145.14,6.34469591]
[1750745581594,43.425,145.17,145.14,6.34469591]
[1750745583584,36.54,145.17,145.14,13.23069591]
[1750745583785,36.54,145.17,145.14,6.34469591]
[1750745584288,36.54,145.17,145.15,6.34469591]
[1750745584995,36.54,145.17,145.14,13.23059591]
[1750745585595,36.54,145.17,145.15,6.34469591]
[1750745586191,36.54,145.17,145.15,13.23019591]
[1750745588700,36.54,145.17,145.15,6.34469591]
[1750745592906,43.4246,145.17,145.15,6.34469591]
[1750745593408,6.8851,145.16,145.15,6.34469591]
[1750745593608,8.22372644,145.16,145.13,0.41]
[1750745593910,6.8861,145.14,145.13,0.41]
[1750745594106,3.41464095,145.16,145.13,0.41]
[1750745594605,36.54,145.17,145.13,0.41]
[1750745594810,36.54,145.17,145.14,6.34469591]
[1750745594995,36.54,145.17,145.15,6.34469591]
[1750745596209,43.4247,145.17,145.15,6.34469591]
[1750745596415,43.4247,145.17,145.14,6.34469591]
[1750745596820,5.19272666,145.16,145.14,6.34469591]
[1750745597020,43.4247,145.17,145.14,6.34469591]
[1750745597227,5.19271322,145.16,145.15,6.34469591]
[1750745598224,5.19271322,145.16,145.14,6.34469591]
[1750745598521,43.425,145.17,145.15,6.34469591]
[1750745598715,5.19233823,145.16,145.14,6.34469591]
[1750745598916,43.425,145.17,145.14,6.34469591]
[1750745599113,5.19232717,145.16,145.14,6.34469591]
[1750745599419,43.425,145.17,145.14,6.34469591]
[1750745599622,5.19220271,145.16,145.14,6.34469591]
[1750745599821,43.425,145.17,145.14,6.34469591]
[1750745600024,5.19234166,145.16,145.14,6.34469591]
[1750745600232,43.425,145.17,145.14,6.34469591]
[1750745600525,5.1923229,145.16,145.14,6.34469591]
[1750745600821,43.425,145.17,145.14,6.34469591]
[1750745601023,5.19217227,145.16,145.14,6.34469591]
[1750745601223,43.425,145.17,145.14,6.34469591]
[1750745601421,5.19215903,145.16,145.14,6.34469591]
[1750745601625,43.425,145.17,145.14,6.34469591]
[1750745601824,5.1919039,145.16,145.14,6.34469591]
[1750745602121,43.425,145.17,145.14,6.34469591]
[1750745602323,5.19217193,145.16,145.14,6.34469591]
[1750745602522,6.8852,145.16,145.14,6.34469591]
[1750745605215,6.8856,145.15,145.14,6.34469591]
[1750745605416,12.07767849,145.15,145.13,6.75469591]
[1750745605621,6.8856,145.15,145.13,6.75469591]
[1750745607428,6.8854,145.16,145.13,6.75469591]
[1750745607723,5.19166115,145.15,145.13,6.75469591]
[1750745607928,6.8854,145.16,145.13,6.75469591]
[1750745608121,5.19164356,145.15,145.13,6.75469591]
[1750745608319,6.8856,145.15,145.13,6.75469591]
[1750745611625,6.8856,145.15,145.13,6.34469591]
[1750745614025,36.54,145.17,145.13,6.34469591]
[1750745614229,8.60076402,145.16,145.12,6.34469591]
[1750745614432,5.18612307,145.15,145.11,6.34469591]
[1750745614635,12.07356975,145.14,145.11,6.34469591]
[1750745614829,5.18706975,145.13,145.11,6.34469591]
[1750745615134,6.8866,145.13,145.11,6.34469591]
[1750745616233,6.8862,145.14,145.11,6.34469591]
[1750745616526,36.54,145.17,145.12,6.887]
[1750745616731,12.07360364,145.16,145.12,13.23169591]
[1750745616918,5.18820364,145.15,145.12,6.34469591]
[1750745617118,6.8866,145.13,145.11,6.34469591]
[1750745617720,6.887,145.12,145.11,6.34469591]
[1750745618127,3.41464095,145.16,145.11,6.34469591]
[1750745618326,5.18790621,145.15,145.1,6.34469591]
[1750745618525,6.8867,145.13,145.11,6.34469591]
[1750745618735,6.8867,145.13,145.1,6.34469591]
[1750745619032,6.8867,145.13,145.09,15.32341624]
[1750745619234,6.8867,145.13,145.1,6.36341568]
[1750745619433,6.8867,145.13,145.11,6.36341568]
[1750745619635,5.1875019,145.12,145.1,6.36341568]
[1750745619821,3.41464095,145.14,145.08,17.55161624]
[1750745619822,36.12,145.13,145.09,6.36341568]
[1750745620025,5.18768559,145.12,145.09,6.36341568]
[1750745620227,6.8874,145.12,145.09,6.36341568]
[1750745620634,36.12,145.13,145.09,6.36341568]
[1750745620829,6.8876,145.11,145.09,6.36341568]
[1750745621734,6.888,145.1,145.09,6.36341568]
[1750745621937,8.59518317,145.1,145.07,6.36341568]
[1750745622235,8.59518317,145.1,145.05,8.43531624]
[1750745622236,41.30115432,145.09,145.05,6.36341568]
[1750745622437,6.8894,145.07,145.05,6.36341568]
[1750745622731,6.8894,145.07,145.04,6.36341568]
[1750745622938,6.8891,145.08,145.04,6.36341568]
[1750745623438,3.41464095,145.08,145.04,6.36341568]
[1750745623637,3.41464095,145.06,145.02,8.77721568]
[1750745624231,3.41464095,145.06,145.02,2.4138]
[1750745624740,3.41464095,145.06,145.02,8.77721568]
[1750745625142,3.41464095,145.06,145.02,2.4138]
[1750745625642,10.30494095,145.06,145.02,2.4138]
[1750745627547,6.8903,145.06,145.02,9.3055]
[1750745627739,6.8903,145.06,145.02,2.4138]
[1750745627944,6.8904,145.05,145.02,2.4138]
[1750745628346,6.8913,145.03,144.99,8.61131568]
[1750745628644,6.8913,145.03,144.99,2.2479]
[1750745629747,6.8913,145.03,144.99,9.1409]
[1750745630140,6.8917,145.03,144.98,2.2813]
[1750745630347,36.12,145.05,144.98,2.2813]
[1750745630348,3.41464095,145.04,144.98,2.2813]
[1750745630545,3.41464095,145.04,144.97,126.49256296]
[1750745630851,6.8921,145.02,144.97,9.3069]
[1750745631144,3.41464095,145.04,144.97,2.4131]
[1750745631345,3.41464095,145.02,144.97,2.4131]
[1750745631650,36.12,145.01,144.97,2.4131]
[1750745632650,6.8928,145.0,144.97,2.4131]
[1750745634150,6.8933,144.99,144.95,2.2915]
[1750745634649,3.41464095,145.0,144.93,2.3917]
[1750745635651,6.894,144.98,144.94,6.8954]
[1750745635854,36.12,145.01,144.94,3.41464095]
[1750745636146,6.8935,144.99,144.93,8.75511568]
[1750745636344,39.53464095,145.01,144.93,2.3917]
[1750745636645,39.53464095,145.01,144.93,5.80634095]
[1750745636853,6.8939,144.98,144.94,6.8955]
[1750745638352,39.53464095,145.01,144.93,2.3917]
[1750745639055,6.894,144.98,144.94,6.8953]
[1750745639748,6.8942,144.97,144.94,6.8953]
[1750745640456,6.8942,144.97,144.93,2.3917]
[1750745640642,36.12,145.01,144.93,2.3917]
[1750745640849,36.12,145.01,144.96,6.8946]
[1750745641156,36.12,145.01,144.93,2.3917]
[1750745641459,36.12,145.01,144.96,6.8943]
[1750745641948,6.8928,145.0,144.96,6.8943]
[1750745642148,36.12,145.01,144.97,6.8941]
[1750745642457,36.12,145.01,144.95,3.42200685]
[1750745642754,36.12,145.01,144.97,3.42200685]
[1750745643248,3.42200685,145.05,144.97,3.42200685]
[1750745643249,6.8915,145.03,145.0,6.8927]
[1750745644255,43.0309,145.04,145.01,6.8922]
[1750745644459,36.14,145.04,144.99,3.42200685]
[1750745644660,36.14,145.04,145.0,2.3815]
[1750745644961,36.14,145.07,145.01,3.42200685]
[1750745645351,36.14,145.07,145.04,6.8905]
[1750745646657,43.0294,145.07,145.04,6.8905]
[1750745648161,36.14,145.07,145.04,6.8905]
[1750745650260,36.14,145.07,145.06,6.8899]
[1750745650460,595.44,145.13,145.05,3.42200685]
[1750745650657,35.98,145.14,145.09,3.42200685]
[1750745650857,35.98,145.15,145.09,3.42200685]
[1750745651062,35.98,145.15,145.07,3.42200685]
[1750745651267,3.42200685,145.14,145.07,3.42200685]
[1750745651866,35.98,145.15,145.11,6.8875]
[1750745651867,42.8657,145.15,145.11,6.8875]
[1750745653753,6.8862,145.14,145.07,3.42200685]
[1750745654264,6.8862,145.14,145.09,6.8881]
[1750745655168,10.30870685,145.13,145.08,6.8888]
[1750745655359,3.42200685,145.13,145.08,6.8888]
[1750745655757,6.8866,145.13,145.09,6.8883]
[1750745656264,6.8866,145.13,145.08,6.8888]
[1750745656965,6.8866,145.13,145.09,6.8884]
[1750745661171,6.8866,145.13,145.08,6.8885]
[1750745663268,6.8871,145.12,145.08,6.8885]
[1750745664170,6.8875,145.11,145.07,6.8892]
[1750745664469,3.42200685,145.14,145.07,6.8892]
[1750745665168,3.42200685,145.12,145.07,6.8892]
[1750745665364,35.98,145.11,145.07,6.8892]
[1750745665765,42.8675,145.11,145.07,6.8892]
[1750745665959,35.98,145.11,145.08,6.8887]
[1750745667674,35.98,145.11,145.06,5.64700685]
[1750745668570,35.98,145.14,145.08,3.42200685]
[1750745668869,35.98,145.17,145.1,3.42200685]
[1750745669067,6.8851,145.16,145.1,3.42200685]
[1750745669968,35.98,145.17,145.1,3.42200685]
[1750745671175,35.98,145.17,145.12,3.42200685]
[1750745671375,42.8649,145.17,145.13,6.8861]
[1750745671577,35.98,145.17,145.11,3.42200685]
[1750745671974,35.98,145.17,145.14,6.8857]
[1750745672368,35.98,145.17,145.12,2.2086]
[1750745672570,35.98,145.17,145.15,6.8855]
[1750745672877,35.98,145.17,145.12,2.2086]
[1750745673270,35.98,145.17,145.14,6.8857]
[1750745673471,35.98,145.17,145.12,2.2086]
[1750745673978,35.98,145.17,145.15,6.8853]
[1750745674277,35.98,145.17,145.13,3.42200685]
[1750745674479,634.72200685,145.2,145.13,3.42200685]
[1750745674775,634.72200685,145.2,145.13,2.3675]
[1750745675273,6.8845,145.18,145.14,6.8859]
[1750745675473,634.72200685,145.2,145.14,6.8859]
[1750745676175,6.8845,145.18,145.14,6.8859]
[1750745676876,6.8845,145.18,145.15,6.8854]
[1750745677181,634.72200685,145.2,145.15,6.8854]
[1750745677372,634.72200685,145.2,145.14,6.8859]
[1750745677967,6.8848,145.17,145.14,6.8859]
[1750745681576,6.8843,145.18,145.14,6.8859]
[1750745682179,6.8847,145.17,145.14,6.8859]
[1750745683174,6.8852,145.16,145.1,35.96]
[1750745683385,42.7252,145.16,145.1,35.96]
[1750745683879,42.7252,145.16,145.12,6.8867]
[1750745685582,6.8856,145.15,145.12,6.8867]
[1750745687075,6.8856,145.15,145.11,6.8873]
[1750745687280,6.8861,145.14,145.11,6.8873]
[1750745687880,6.8858,145.15,145.12,6.8869]
[1750745689280,6.8858,145.15,145.11,6.8873]
[1750745689767,6.8861,145.14,145.11,6.8873]
[1750745690974,6.8861,145.14,145.09,11.93227864]
[1750745690975,39.26200685,145.16,145.09,3.42200685]
[1750745691282,39.26200685,145.16,145.09,9.73937864]
[1750745691772,6.8863,145.14,145.11,6.8871]
[1750745692381,6.8858,145.15,145.12,6.887]
[1750745692782,6.8858,145.15,145.1,6.31737179]
[1750745692980,6.8858,145.15,145.11,6.8872]
[1750745693285,6.8861,145.14,145.11,6.8872]
[1750745696285,5.20829407,145.13,145.11,6.8872]
[1750745696495,6.8861,145.14,145.11,6.8872]
[1750745697188,6.8858,145.15,145.12,6.8869]
[1750745697388,5.20861613,145.14,145.12,6.8869]
[1750745697585,6.8858,145.15,145.12,6.8869]
[1750745697893,5.20288803,145.14,145.12,6.8869]
[1750745698081,6.8858,145.15,145.12,6.8869]
[1750745698278,5.2028882,145.14,145.12,6.8869]
[1750745698480,6.8861,145.14,145.11,6.8873]
[1750745701889,6.8858,145.15,145.11,6.8873]
[1750745702083,5.20084442,145.14,145.11,6.8873]